Cogmind - Beta 16.1 @@@ ROGUE MODE // 2026.03.20 @ 21:49:41 Player: Yanriel Result: Destroyed by G-34 Mercenary with Small Laser Performance ------------- Evolutions (0) 0 Regions Visited (1) 200 Robots Destroyed (33) 165 Value Destroyed (728) 728 Prototype IDs (0) 0 Alien Tech Used (0) 0 Bonus (0) 0 TOTAL SCORE: 1093 Bonus ------- None Cogmind --------- Core Integrity 0/250 Matter 300/300 Energy 183/250 System Corruption 0% Temperature Hot (241) Movement Walking (260) Ox2 Location -10/Materials Parts ------- > --- POWER (1) -------- Ion Engine > --- PROPULSION (2) --- Aluminum Leg Aluminum Leg > --- UTILITY (2) ------ Large Storage Unit Large Storage Unit > --- WEAPON (2) ------- Beam Rifle Beam Rifle > --- INVENTORY (15) --- Ion Engine Light Ion Engine Improved Heat Sink Small Storage Unit Small Storage Unit Improved Terrain Scanner Improved Terrain Scanner Beam Rifle Beam Rifle Assault Rifle Assault Rifle Assault Rifle Assault Rifle Grenade Launcher Peak State ------------ > --- POWER ------------ Ion Engine > --- PROPULSION ------- Aluminum Leg Aluminum Leg > --- UTILITY ---------- Large Storage Unit Large Storage Unit > --- WEAPON ----------- Beam Rifle Beam Rifle > --- INVENTORY -------- Ion Engine Light Ion Engine Improved Heat Sink Small Storage Unit Small Storage Unit Improved Terrain Scanner Improved Terrain Scanner Beam Rifle Beam Rifle Assault Rifle Assault Rifle Assault Rifle Assault Rifle Grenade Launcher [Rating: 11] Favorites ----------- Power Light Ion Engine Engine Light Ion Engine Propulsion Light Treads Treads Light Treads Leg Aluminum Leg Utility Large Storage Unit Storage Large Storage Unit Weapon Assault Rifle Energy Gun Medium Laser Ballistic Gun Assault Rifle Ballistic Cannon Light Cannon Launcher Grenade Launcher Build | -11 -10 ------- Run | Yrd Mat Slots Evolved . | . . Power . | . . Propulsion . | . . Utility . | . . Weapon . | . . Parts Attached 23 | 7 16 Power 2 | 1 1 Engine 2 | 1 1 Core . | . . Reactor . | . . Propulsion 6 | 2 4 Treads 2 | . 2 Leg 4 | 2 2 Wheel . | . . Hover . | . . Flight . | . . Utility 6 | 2 4 Device . | . . Storage 6 | 2 4 Processor . | . . Hackware . | . . Protection . | . . Artifact . | . . Weapon 9 | 2 7 Energy Gun 4 | 2 2 Energy Cannon . | . . Ballistic Gun 3 | . 3 Ballistic Cannon 1 | . 1 Launcher 1 | . 1 Special Weapon . | . . Impact Weapon . | . . Slashing Weapon . | . . Piercing Weapon . | . . Special Melee Weapon . | . . Unidentified Prototypes . | . . Parts Lost 3 | . 3 Power 1 | . 1 Propulsion 1 | . 1 Utility . | . . Weapon 1 | . 1 Highest Loss Streak 1 | . 1 To Critical Strikes . | . . Average Backups 8 | 4 9 Power 1 | . 1 Propulsion . | 1 . Utility 4 | . 4 Weapon 2 | 1 3 Tool/Special . | . . Unused Backups 13 | . 13 Power 2 | . 2 Propulsion . | . . Utility 3 | . 3 Weapon 8 | . 8 Tool/Special . | . . Average Slot Usage (%) 96 | . 96 Engine 11 | . 11 Treads 21 | . 21 Leg 6 | . 6 Storage 28 | . 28 Energy Gun 7 | . 7 Ballistic Gun 12 | . 12 Ballistic Cannon 6 | . 6 Launcher 1 | . 1 Peak Build Rating 11 | 8 11 Average Rating 8 | 6 8 On Entrance 4 | . 8 Avg Prop Armor Cover (%) . | . . Naked Turns . | . . Heaviest Build 168 | 17 168 Greatest Support 40 | 20 40 Greatest Overweight (x) 4 | 2 4 Average Overweight (x) 1 | . 1 Largest Inventory Capacity 25 | 8 25 Average Capacity 15 | 7 16 Most Carried 15 | 8 15 Average Carried 8 | 4 9 Final Capacity 15 | 8 15 Final Carried 14 | 8 14 Class Distribution -------------------- 100% | Mutant Dominant Class ---------------- Mutant | -10/Materials Resources | -11 -10 ----------- Run | Yrd Mat Matter Collected 879 | 270 609 Remotely . | . . Salvage Created 868 | 209 659 Parts 59 | 15 44 Haulers Intercepted 1 | . 1 Recyclers Shooed 1 | 1 . Parts Field Recycled . | . . Retrieved Matter . | . . Parts Self-Destructed . | . . Prevented . | . . Parts Restored . | . . Kills | -11 -10 ------- Run | Yrd Mat Combat Hostiles Destroyed 18 | . 18 Guns 8 | . 8 Cannons 6 | . 6 AOE 3 | . 3 Classes Destroyed 7 | 3 4 Worker 4 | 2 2 Tunneler 6 | 6 . Hauler 1 | . 1 Recycler 1 | 1 . Watcher 3 | . 3 Swarmer 2 | . 2 Grunt 16 | . 16 Best Kill Streak 5 | 5 3 Combat Bots Only 3 | . 3 Max Kills in Single Turn 2 | 2 2 Gunslinging . | . . Exploded 2 | . 2 Melee . | . . Uniques/NPCs Destroyed . | . . Combat | -11 -10 -------- Run | Yrd Mat Hostile Shots Fired 128 | . 128 Missed 32 | . 32 Hits 96 | . 96 Projectile 96 | . 96 Critical Strikes 4 | . 4 Damage Taken 1127 | . 1127 Core 254 | . 254 Absorbed by Shields . | . . Core Remaining (%) 100 | 100 . Volleys Fired 93 | 17 76 Largest 2 | 2 2 Hottest 112 | 100 112 Shots Fired 181 | 34 147 Gun 137 | 34 103 Cannon 42 | . 42 Launcher 2 | . 2 Special . | . . Kinetic 119 | . 119 Thermal 60 | 34 26 Explosive 2 | . 2 Electromagnetic . | . . Robot Hit Streak 12 | 7 12 Robot Miss Streak 4 | 4 3 Penetration Max . | . . Secondary Targets . | . . Shots Hit Robots 128 | 22 106 Core Hits 47 | 10 37 Critical Kills . | . . Critical Parts Destroyed . | . . Critical Strikes 6 | 4 2 Burn 5 | 4 1 Blast 1 | . 1 Melee Attacks . | . . Impact . | . . Slashing . | . . Piercing . | . . Sneak Attacks . | . . Combat Hostiles . | . . Follow-up Attacks . | . . Damage Inflicted 2028 | 290 1738 Guns 1328 | 290 1038 Cannons 535 | . 535 Explosions 165 | . 165 Melee . | . . Ramming . | . . Kinetic 1308 | . 1308 Thermal 555 | 290 265 Explosive 165 | . 165 Electromagnetic . | . . Impact . | . . Slashing . | . . Piercing . | . . Highest Corruption . | . . Average Corruption . | . . Corruption Purged . | . . Corruption Blocked . | . . Overload Shots . | . . Overflow Damage 5 | . 5 Projectiles 5 | . 5 Explosions . | . . Melee . | . . Knockbacks 9 | . 9 Impact . | . . Kinetic 9 | . 9 Secondary . | . . Self-Inflicted Damage . | . . Shots . | . . Rammed . | . . Targets Rammed . | . . Kicked . | . . Crushed . | . . Highest Temperature 321 | 163 321 Average Temperature 91 | 66 112 Received Heat Transfer 666 | . 666 Effects 4 | . 4 Energy Bleed 2 | . 2 Interference 2 | . 2 Siege Activations . | . . Martial Activations . | . . Shielding Activations . | . . Robots Disrupted . | . . Combat Hostiles . | . . Robots Corrupted . | . . Combat Hostiles . | . . Parts Fried . | . . Impact Corruptions . | . . Robots Melted 1 | . 1 Combat Hostiles 1 | . 1 Parts Melted 7 | 4 3 Heat Transferred 1961 | 1147 814 Parts Sabotaged . | . . Parts Stolen . | . . Parts Stripped . | . . Power Chain Reactions . | . . Alert | -11 -10 ------- Run | Yrd Mat Maximum Alert Level . | . . Low Security (%) 100 | 100 100 Level 1 . | . . Level 2 . | . . Level 3 . | . . Level 4 . | . . Level 5 . | . . High Security . | . . Max Security . | . . Peak Influence 132 | 10 132 Initial 6 | . 6 Average 38 | 1 42 Influence Increases 592 | 45 547 Destroy 0b10 Robot/C 360 | . 360 Destroy 0b10 Robot/NC 75 | 45 30 Destroy Leader 88 | . 88 Successful Hack 8 | . 8 Disable Machine 15 | . 15 Destroy Structure 16 | . 16 Lose Combat Pursuer 30 | . 30 Influence Decreases 544 | 35 509 Entered New Map 4 | . 4 Time Decay 530 | 35 495 Lost Part 10 | . 10 Squads Dispatched 3 | . 3 Investigation 2 | . 2 Extermination . | . . Reinforcement 1 | . 1 Assault . | . . Garrison . | . . Intercept . | . . Searches Triggered . | . . Construction Impeded . | . . Haulers Reinforced . | . . Active Scanning Responses . | . . Cargo Convoy Interrupts . | . . Stealth | -11 -10 --------- Run | Yrd Mat Distress Signals 5 | . 5 Communications Jammed . | . . Distress Signals . | . . Times Spotted 31 | . 31 Peak Tracking Total 4 | . 4 Tactical Retreats 2 | . 2 Traps | -11 -10 ------- Run | Yrd Mat Traps Triggered 2 | . 2 Indirectly . | . . Trap Hack Attempts . | . . Triggered . | . . Disarmed . | . . Reprogrammed . | . . Reused . | . . Traps Extracted . | . . Installed . | . . Triggered . | . . Machines | -11 -10 ---------- Run | Yrd Mat Machines Disabled 1 | . 1 Max in Single Turn 1 | . 1 Machines Repaired . | . . Machines Dismantled . | . . Machines Sabotaged . | . . Overloaded Fab Kills . | . . Hacking | -11 -10 --------- Run | Yrd Mat Machines Accessed 5 | . 5 Terminals 3 | . 3 Fabricators . | . . Repair Stations 1 | . 1 Recycling Units 1 | . 1 Scanalyzers . | . . Garrison Access . | . . Total Hacks 8 | . 8 Successful 4 | . 4 Failed 4 | . 4 Catastrophic 1 | . 1 Database Lockouts . | . . Manual 3 | . 3 Terminals 6 | . 6 Fabricators . | . . Repair Stations 1 | . 1 Recycling Units 1 | . 1 Scanalyzers . | . . Garrison Access . | . . Terminal Hacks 3 | . 3 Record 3 | . 3 Fabricator Hacks . | . . Repair Station Hacks 1 | . 1 Refit 1 | . 1 Recycling Unit Hacks . | . . Scanalyzer . | . . Garrison Access Hacks . | . . Unauthorized Hacks . | . . Terminals . | . . Fabricators . | . . Repair Stations . | . . Recycling Units . | . . Scanalyzers . | . . Garrison Access . | . . Data Cores Recovered . | . . Used . | . . Hacking Detections 4 | . 4 Full Trace Events . | . . Feedback Events . | . . Feedback Blocked . | . . Robot Schematics Acquired . | . . Robots Built . | . . Authchips . | . . Time . | . . Total Robot Build Rating . | . . Part Schematics Acquired . | . . Parts Built . | . . Authchips . | . . Time . | . . Total Part Build Rating . | . . Part Studies Acquired . | . . Parts Repaired . | . . Time . | . . Parts Recycled . | . . Recycled Matter . | . . Retrieved Matter . | . . Retrieved Components . | . . Parts Scanalyzed . | . . Part Schematics Acquired . | . . Parts Damaged . | . . Bothacking | -11 -10 ------------ Run | Yrd Mat Used RIF Installer . | . . Robots Hacked . | . . Non-combat . | . . Combat . | . . Robot Hacks Applied . | . . Relay Couplers Released . | . . Fabnet Peak Effective % . | . . Robots Rewired . | . . Allies Hacked . | . . Hacks Repelled . | . . Allies | -11 -10 -------- Run | Yrd Mat Total Allies . | . . Largest Group . | . . Highest-Rated Group . | . . Highest-Rated Ally . | . . Total Orders . | . . Ally Attacks . | . . Total Damage . | . . Kills . | . . Allies Corrupted . | . . Allies Melted . | . . Intel | -11 -10 ------- Run | Yrd Mat Active Infowar (turns) . | . . Robot Analysis Total . | . . Derelict Logs Recovered . | . . Drone Launches . | . . Drone Recoveries . | . . Exploration | -11 -10 ------------- Run | Yrd Mat Turns Passed 2258 | 246 2012 Spaces Moved 788 | 144 644 Core 15 | 15 . Treads 479 | . 479 Legs 294 | 129 165 Wheels . | . . Hover . | . . Flight . | . . Fastest Speed 50 | 50 120 Average Speed 234 | 117 260 Slowest Speed 480 | 150 480 Overloaded Moves . | . . Propulsion Burnouts . | . . Robots Hopped . | . . Potential Cave-ins . | . . Cave-ins Triggered . | . . Exploration Rate (%) 38 | 5 71 Regions Visited 1 Branch Regions . Pre-discovered Areas . | . . Known Exits Taken . | . . Unknown Exits Taken 1 | 1 . Scrap Searched . | . . Spaces Dug . | . . Terrain Destroyed 14 | . 14 Melee . | . . Projectile . | . . AOE 14 | . 14 Terrain Rammed . | . . Walls Destroyed . | . . Machines Disabled . | . . Actions | -11 -10 --------- Run | Yrd Mat Total 1023 | 187 836 Wait 58 | 5 53 Move 787 | 143 644 Hop . | . . Pick Up 36 | 15 21 Fast Attach 1 | . 1 Attach 15 | 7 8 Detach 4 | . 4 Swap 11 | . 11 Drop 18 | . 18 Fire 93 | 17 76 Melee . | . . Ram . | . . Kick . | . . Crush . | . . Escape Stasis . | . . Rewire . | . . Trap . | . . Miscellaneous . | . . Route ------- -11/Scrapyard -10/Materials (discovered 4 exits: [*Mat x2] / [*Min x2]) History --------- Turn | Location | Event 24 | -11/Scrapyard | Discovered new exit (range 15) 247 | -11/Scrapyard | Entered Materials 300 | -10/Materials | Build established: Mutant 659 | -10/Materials | Discovered new exit (range 15) 847 | -10/Materials | Derelicts attacked the area 1024 | -10/Materials | Core integrity fell below 50% 1391 | -10/Materials | Discovered new exit (range 13) 1791 | -10/Materials | Discovered new exit (range 12) 1877 | -10/Materials | Discovered new exit (range 5) 1895 | -10/Materials | Core integrity fell below 20% 2259 | -10/Materials | Destroyed by G-34 Mercenary with Small Laser Last Messages --------------- 01973_ U-05 Engineer lays Concrete. 01975_ K-01 Serf collects debris. 01975_ U-05 Engineer lays Concrete. 01976_ U-05 Engineer builds a Wall. 01979_ K-01 Serf collects debris. 01982_ U-05 Engineer lays Concrete. 01983_ K-01 Serf collects debris. 01983_ U-05 Engineer builds a Wall. Want a larger map view with more modal windows? Or have a large enough display to fit a bigger map in exchange for smaller text? Consider selecting a different UI Layout in the option menu. 02023_ K-01 Serf cleans the Terminal. 02084_ Acquired 32 matter. 02097_ Acquired 5 matter. 02110_ Acquired 4 matter. 02118_ Acquired 29 matter. 02254_ Ion Engine melted. 02254_ Heat Sink melted. 02254_ G-34 Mercenary destroyed. 02259_ Overheating: Energy bleed (-61). Map ----- +----------------------------------------------------+ | ######## #????????????? | | [[ ########### ## # ?????????????? | | ####?????????## ### #? ??????????????? | | ??????????????# #?# #?# #????###???????? | | ?????????????## #?#" #?# #??? #??????? | | ?????????????#T #?#T #?# #???""" #??????? | | ####?????????## #?#" #?# #?? """ #??????? | | "" #??????????# #?# ### ##? """ #??????? | | Y" #??????????# #######+## # #??????? | | #??????????# # """ #??????? | | #??????????# ! " + """ #??????? | | #??????????# # """ #??????? | | #??????????# ## # #??????? | | ############### ########? """ #??????? | | #### ## """ + #? """ #??????? | | % + """ ## ! """" # #??""" #??????? | | #### """ # """" # """ #?? #??????? | | #??# " " #| """ # "Y #???###???????? | | #### % %%&+ % " # """ #?????????????? | | + "" %# # #?????????????? | | +#### %""" # % ########?????????????? | | ????# """ ########## #?##########?????????? | | ????# #??????### # ??????????? | | ????#######+##??????#"" # """"????????????? | | ??????????# #???????#T g """"????????????? | | ?????????## ########### @# """""???????????? | | ?????????# [+% #???????? | | ?????????# ########+#######/#####?????????? | | ########## #?# "T" #?? ????????????? | | = # #?# #???? ??????????? | | """ # ### """ """ #?????? ?????????? | | """ =*# + """ """ #????????????????? | | """ =[+ #% """ """ #????????????????? | | """ *# " # #????????????????? | | "T"!# T # #????????????????? | | """ # " #############????????????????? | | # #????????????????????????????? | | ########## #????????????????????????????? | | ?????????# #????????????????????????????? | | ?????????# """ #????????????????????????????? | | ?????????# """ #????????????????????????????? | | ?????????# """ #????????????????????????????? | | ?????????# ####?????????????????????????? | | ?????????# !##????????????????????????? | | ?????????# """ !#????????????????????????? | | ?????????# """ #????????????????????????? | | ?????????# """ #????????????????????????? | | ???????? + !#????????????????????????? | | ??????? # !##????????????????????????? | | ?????????# < ##+#######????????????????????????? | +----------------------------------------------------+ Best States ------------- Heat Dissipation 25 Energy Generation 10 Energy Capacity 250 Matter Stores 300 Matter Capacity 300 Sight Range 16 Terrain Scan Density 10 Evasion (%) 55 Recoil Reduction 2 Item Schematics ----------------- None Robot Schematics ------------------ None Fabricated ------------ Nothing Repaired ---------- Nothing Studied --------- None Alien Tech Used ----------------- None Achievements -------------- DATA ERROR: Steam Global Achievement% Fitting Room Organ Harvest There's More Where That Came From Challenges ------------ None Game ------ Seed SchematicNeutronHammer Manual? 0 Play Time 00:27:51 Cumulative 83.9 hours Start 2026.03.20 @ 21:15:40 End 2026.03.20 @ 21:49:41 Sessions 1 Manual Loads 0 Difficulty Rogue Special Mode None Game No. 30 Rogue 30 Adventurer 0 Explorer 0 Win Type - Total 5 Types 3/0/0/1/0/0/0/0/1/0 Lore% 23 Gallery% 44 Achievement% 34 Wizard Run 0 Options --------- Layout 1 ASCII 0 Keyboard 0 Movement Mouse Keybinds 0 Fullscreen 0 Font 20/SmallcapsGlow Map View 76x35 Zoom Use 0% Tactical HUD 1 Map Filters NONE Filters NONE Steam 1 RUN: 3456b836-af5e-4675-b26e-64b3a46e4bc0